lending/lending_fUSD_20241007
["ID","MTS","AMOUNT","RATE_DAILY","PERIOD"]
[339997551,1728299446606,-250.0,0.00011616,2]
[339997552,1728299446615,-250.0,0.00011619,2]
[339997553,1728299446626,-17932.66241405,0.00011696,2]
[339997554,1728299446638,-566.850957,0.00011696,2]
[339997555,1728299446660,-1569.89137,0.00011696,2]
[339997571,1728299478787,466.6,0.00012304,3]
[339997572,1728299635232,150.53,0.00022,60]
[339997573,1728300131697,602.91,0.00010116,2]
[339997574,1728300329614,308.12052787,0.000101,2]
[339997575,1728300354404,3545.96321756,6.94e-05,2]
[339997582,1728300361293,161.23270362,9e-05,2]
[339997583,1728300366831,531.09282259,0.0001,2]
[339997584,1728300428478,400.0,0.000103,3]
[339997585,1728300430559,900.0,0.000104,3]
[339997586,1728300432686,1300.0,0.000105,3]
[339997587,1728300434785,1800.0,0.000106,3]
[339997588,1728300436888,2200.0,0.000107,3]
[339997589,1728300438989,400.0,0.000108,3]
[339997590,1728300441080,400.0,0.000109,3]
[339997632,1728300631363,-150.0,0.00010899,2]
[339997634,1728300631373,-300.0,0.00010899,2]
[339997635,1728300631383,-475.3993,0.000109,2]
[339997636,1728300631392,-14.42794979,0.000109,2]
[339997637,1728300631404,-2939.90475021,0.000109,2]
[339997638,1728300631414,-4736.81002441,0.000109,2]
[339997639,1728300631423,-311.46172932,0.000109,2]
[339997640,1728300631432,-854.59898718,0.000109,2]
[339997641,1728300631441,-171.89991346,0.000109,2]
[339997642,1728300631450,-271.47578404,0.000109,2]
[339997643,1728300631460,-161.62,0.00010959,2]
[339997644,1728300631469,-152.73,0.00010959,2]
[339997645,1728300631479,-458.12,0.00010959,2]
[339997646,1728300631488,-381.76,0.00010959,2]
[339997647,1728300631497,-318.14,0.00010959,2]
[339997648,1728300631506,-265.11,0.00010959,2]
[339997649,1728300631515,-220.93,0.00010959,2]
[339997650,1728300631525,-184.11,0.00010959,2]
[339997651,1728300631534,-153.42,0.00010959,2]
[339997652,1728300631543,-767.13,0.00010959,2]
[339997653,1728300631552,-158.34833649,0.00010973,2]
[339997654,1728300631561,-5573.06601812,0.00010998,2]
[339997655,1728300631573,-1106.02,0.00010998,2]
[339997656,1728300631584,-328.77735451,0.00010998,2]
[339997657,1728300631593,-157.02516006,0.00010999,2]
[339997658,1728300631604,-842.97483994,0.00010999,2]
[339997659,1728300631614,-173.98138644,0.00010999,2]
[339997660,1728300631623,-500.0,0.00010999,2]
[339997661,1728300631632,-202.17255215,0.00010999,2]
[339997662,1728300631643,-159.4882652,0.00010999,2]
[339997663,1728300631653,-108.58184412,0.00011,2]
[339997664,1728300631664,-141.41815588,0.00011,2]
[339997665,1728300631673,-1236.87761814,0.00011,2]
[339997666,1728300631684,-427.51880542,0.00011,2]
[339997667,1728300631695,-622.0,0.00011,2]
[339997668,1728300631706,-439.35,0.00011,2]
[339997669,1728300631718,-5644.64864698,0.00011,2]
[339997670,1728300631729,-992.32592759,0.00011,2]
[339997671,1728300631740,-4465.79597286,0.00011,2]
[339997672,1728300631751,-1602.76914189,0.00011,2]
[339997674,1728300631763,-708.14,0.00011,2]
[339997676,1728300631774,-476.03849466,0.00011,2]
[339997678,1728300631785,-3804.41474252,0.00011,2]
[339997681,1728300631804,-1879.8522855,0.00011,2]
[339997683,1728300631815,-1075.9549519,0.00011,2]
[339997686,1728300631827,-81875.02165,0.00011,2]
[339997690,1728300631838,-1382.78807392,0.00011,2]
[339997694,1728300631851,-3155.96712328,0.00011,2]
[339997727,1728300637438,-500.0,0.00010973,2]
[339997728,1728300637448,-198.46349581,0.00011,2]
[339997729,1728300637486,-2510.72,0.00011,2]
[339997730,1728300637497,-8752.22233078,0.00011,2]
[339997731,1728300637509,-3500.0,0.00011,2]
[339997732,1728300637623,-3053.96835128,0.00011,2]
[339997733,1728300637634,-500.0,0.00011,2]
[339997734,1728300637645,-297.97689013,0.00011,2]
[339997735,1728300637656,-4451.01784202,0.00011,2]
[339997736,1728300637668,-4218.83426234,0.00011,2]
[339997737,1728300637679,-1157960.62574612,0.00011,2]
[339997738,1728300637694,-88161.89124824,0.00011,2]
[339997739,1728300637705,-1056.81499998,0.00011,2]
[339997740,1728300637716,-655.6964493,0.00011,2]
[339997741,1728300637726,-348.40221945,0.00011,2]
[339997742,1728300637737,-580.70497735,0.00011,2]
[339997743,1728300637748,-68884.76650439,0.00011,2]
[339997744,1728300637759,-5041.6,0.00011,2]
[339997745,1728300637771,-506.90264493,0.00011,2]
[339997746,1728300637782,-2047.08036814,0.00011,2]
[339997747,1728300637793,-4280.70735422,0.00011,2]
[339997748,1728300637804,-717.96206054,0.00011,2]
[339997752,1728300639587,-86571.68538524,0.00011,2]
[339997753,1728300639600,-3048.32772882,0.00011,2]
[339997754,1728300639622,-11600.0,0.00011,2]
[339997755,1728300639633,-318.32673454,0.00011,2]
[339997756,1728300639656,-706.04,0.00011,2]
[339997757,1728300639666,-4832.22556236,0.00011,2]
[339997758,1728300639678,-9920.5,0.00011,2]
[339997759,1728300639689,-500.0,0.00011,2]
[339997760,1728300639699,-3642.57914762,0.00011,2]
[339997761,1728300639710,-3933.36463944,0.00011,2]
[339997762,1728300639720,-524.05621294,0.00011,2]
[339997763,1728300639731,-30132.31558998,0.00011,2]
[339997764,1728300639742,-425.26754798,0.00011,2]
[339997765,1728300639817,-1610.53421101,0.00011,2]
[339997766,1728300639828,-397.63098387,0.00011,2]
[339997767,1728300642400,-164.38861932,0.000109,2]
[339997768,1728300642409,-766.74417027,0.00011,2]
[339997769,1728300642438,-12175.6,0.00011,2]
[339997770,1728300642472,-2833.13889606,0.00011,2]
[339997771,1728300642483,-1395.13210903,0.00011,2]
[339997772,1728300642505,-1211022.39711289,0.00011,2]
[339997773,1728300642516,-57543.59413351,0.00011,2]
[339997774,1728300642527,-530.95163184,0.00011,2]
[339997775,1728300642538,-297.95376087,0.00011,2]
[339997776,1728300642548,-293.30521316,0.00011,2]
[339997777,1728300642560,-352.3912,0.00011,2]
[339997778,1728300642571,-659.52544,0.00011,2]
[339997779,1728300642581,-735.915,0.00011,2]
[339997780,1728300642592,-715.36994382,0.00011,2]
[339997781,1728300642605,-10003.93457314,0.00011,2]
[339997782,1728300642617,-336.25579174,0.00011,2]
[339997783,1728300642628,-432.0,0.00011,2]
[339997784,1728300642639,-5875.66929853,0.00011,2]
[339997785,1728300642650,-5379.87038031,0.00011,2]
[339997786,1728300642737,-1310.89655929,0.00011,2]
[339997788,1728300642749,-19225.41725305,0.00011,2]
[339997793,1728300645501,-6964.98416618,0.00011,2]
[339997794,1728300645698,-212729.88471352,0.00011,2]
[339997795,1728300668520,572.76,9.705e-05,2]
[339997797,1728301196010,544.12,9.617e-05,2]
[339997798,1728301527852,150.0,9.888e-05,2]
[339997809,1728301831645,-231.1794,0.000108,2]
[339997810,1728301831655,-150.0,0.00010899,2]
[339997811,1728301831665,-159.8569,0.000109,2]
[339997812,1728301831675,-172.93282298,0.000109,2]
[339997813,1728301831684,-148.13332502,0.000109,2]
[339997814,1728301831698,-12.61313043,0.000109,2]
[339997815,1728301831709,-196.11869064,0.000109,2]
[339997816,1728301831719,-215.27818834,0.000109,2]
[339997817,1728301831729,-2282.79333559,0.000109,2]
[339997818,1728301831804,-314.817611,0.000109,2]
[339997822,1728301837646,-4161.54355341,0.000109,2]
[339997823,1728301837655,-177.2428,0.000109,2]
[339997824,1728301837664,-1343.8384,0.000109,2]
[339997825,1728301837673,-1678.3835632,0.000109,2]
[339997826,1728301837713,-4862.32716529,0.000109,2]
[339997827,1728301837724,-921.2757229,0.000109,2]
[339997828,1728301837739,-950.49702112,0.000109,2]
[339997829,1728301837748,-150.83926334,0.000109,2]
[339997830,1728301837757,-180.98385602,0.000109,2]
[339997831,1728301837766,-6175.39582001,0.000109,2]
[339997832,1728301837835,-12555.81337999,0.000109,2]
[339997833,1728301837844,-12830.96811159,0.000109,2]
[339997834,1728301837852,-164.38861932,0.000109,2]
[339997835,1728301837862,-793.68261656,0.000109,2]
[339997836,1728301837872,-162.87,0.00010959,2]
[339997837,1728301837881,-522.79243652,0.00010999,2]
[339997838,1728301837890,-500.0,0.00010999,2]
[339997839,1728301837899,-500.0,0.00010999,2]
[339997840,1728301837908,-358.0930569,0.00010999,2]
[339997841,1728301837917,-500.0,0.00010999,2]
[339997842,1728301837926,-439.89983775,0.00010999,2]
[339997843,1728301837935,-1699217.08287491,0.00011,2]
[339997844,1728301837946,-252.57061898,0.00011,2]
[339997845,1728301837957,-2951.88708974,0.00011,2]
[339997847,1728301837967,-1243.66113836,0.00011,2]
[339997848,1728301837978,-44657.07541753,0.00011,2]
[339997849,1728301837989,-260.92,0.00011,2]
[339997852,1728301839768,-293.7897333,0.00011,2]
[339997853,1728301839782,-2839.03575,0.00011,2]
[339997854,1728301839795,-379.13333488,0.00011,2]
[339997855,1728301839805,-1572.806922,0.00011,2]
[339997856,1728301839818,-422.21423382,0.00011,2]
[339997862,1728301842597,-27576.93792443,0.00011,2]
[339997863,1728301842609,-1574.809488,0.00011,2]
[339997865,1728301842703,-10513.26996071,0.00011,2]
[339997866,1728301842717,-61850.57977689,0.00011,2]
[339997867,1728301842912,-5531.28302645,0.00011,2]
[339997868,1728301842924,-5562.72028883,0.00011,2]
[339997869,1728301842965,-1200.0,0.00011,2]
[339997875,1728301846195,-2438.53564919,0.00011,2]
[339997876,1728301846206,-1000.54103258,0.00011,2]
[339997877,1728301846221,-384582.86381908,0.00011,2]
[339997878,1728301846232,-1900.646176,0.00011,2]
[339997879,1728301846247,-7671.2882,0.00011,2]
[339997880,1728301846257,-965.24945157,0.00011,2]
[339997881,1728301846287,516.91,9.62e-05,2]
[339997884,1728302355903,529.61,9.543e-05,2]
[339997912,1728303034844,-495.44814749,0.00010899,2]
[339997914,1728303034853,-150.0,0.00010899,2]
[339997916,1728303034863,-54.55185251,0.000109,2]
[339997918,1728303034875,-9814.22034749,0.000109,2]
[339997919,1728303034884,-3336.2739,0.000109,2]
[339997921,1728303034894,-172.93282298,0.000109,2]
[339997923,1728303034904,-1000.0,0.000109,2]
[339997924,1728303034913,-7285.5042,0.000109,2]
[339997926,1728303034922,-160.74645545,0.000109,2]
[339997927,1728303034931,-3808.5079,0.000109,2]
[339997928,1728303034940,-156.89495252,0.000109,2]
[339997929,1728303034950,-184.5241614,0.000109,2]
[339997930,1728303034959,-1000.0,0.000109,2]
[339997931,1728303034968,-8833.27684959,0.000109,2]
[339997932,1728303034978,-2831.29725935,0.000109,2]
[339997933,1728303034987,-266.67277543,0.000109,2]
[339997934,1728303034996,-2004.617,0.000109,2]
[339997935,1728303035006,-2500.0,0.000109,2]
[339997936,1728303035015,-159.88,0.00010959,2]
[339997937,1728303035024,-150.15,0.00010959,2]
[339997938,1728303035034,-25634.50137619,0.00011,2]
[339997939,1728303035046,-486.99460917,0.00011,2]
[339997940,1728303035057,-2249.77241795,0.00011,2]
[339997941,1728303035072,-9765.23119594,0.00011,2]
[339997942,1728303035083,-1748.39289819,0.00011,2]
[339997943,1728303035094,-431679.15846791,0.00011,2]
[339997944,1728303037773,-1280.80000019,0.00011,2]
[339997945,1728303037783,-4704.03000001,0.00011,2]
[339997946,1728303037830,-7117.14509297,0.00011,2]
[339997947,1728303037841,-782.53154917,0.00011,2]
[339997948,1728303037853,-276.73994888,0.00011,2]
[339997949,1728303037883,-6283.91917661,0.00011,2]
[339997950,1728303037991,-1604043.88166173,0.00011,2]
[339997951,1728303038097,-1003.25846936,0.00011,2]
[339997952,1728303038108,-1052.1124325,0.00011,2]
[339997953,1728303038119,-561.82928208,0.00011,2]
[339997956,1728303039765,-1278.5102,0.000109,2]
[339997957,1728303039774,-1829.34881998,0.00011,2]
[339997958,1728303039785,-86636.95704153,0.00011,2]
[339997959,1728303039796,-1065.9793395,0.00011,2]
[339997960,1728303039807,-388.52572766,0.00011,2]
[339997961,1728303039819,-2933.56225702,0.00011,2]
[339997962,1728303039829,-33886.05425213,0.00011,2]
[339997963,1728303039841,-1341.81789083,0.00011,2]
[339997964,1728303039853,-533.1,0.00011,2]
[339997965,1728303039864,-1710.66428866,0.00011,2]
[339997966,1728303039875,-298.57312534,0.00011,2]
[339997967,1728303039886,-2098.83755617,0.00011,2]
[339997968,1728303039897,-1490.48160631,0.00011,2]
[339997969,1728303039908,-475.21517826,0.00011,2]
[339997970,1728303039919,-8207.71589643,0.00011,2]
[339997971,1728303039931,-4355.31238879,0.00011,2]
[339997972,1728303039942,-4010.853084,0.00011,2]
[339997973,1728303039953,-162848.36712535,0.00011,2]
[339997974,1728303039964,-256.89893274,0.00011,2]
[339997975,1728303039977,-2010.28397399,0.00011,2]
[339997976,1728303039988,-11154.02902372,0.00011,2]
[339997977,1728303039999,-535.7267076,0.00011,2]
[339997978,1728303040064,-5715.82395628,0.00011,2]
[339997979,1728303040075,-1633.56266826,0.00011,2]
[339997980,1728303040087,-703.655,0.00011,2]
[339997981,1728303040150,-94028.51986877,0.00011,2]
[339997984,1728303040163,-2515.49462716,0.00011,2]
[339997986,1728303040174,-312.3160075,0.00011,2]
[339997988,1728303040184,-4307.56043718,0.00011,2]
[339997990,1728303040195,-19170.47757537,0.00011,2]
[339997992,1728303040206,-670.7,0.00011,2]
[339997994,1728303040218,-9203.11958714,0.00011,2]
[339997995,1728303040229,-18760.5019774,0.00011,2]
[339997996,1728303040241,-15290.94843463,0.00011,2]
[339998009,1728303042877,-1394.9962,0.000109,2]
[339998010,1728303043144,-1046.33145031,0.000109,2]
[339998011,1728303043155,-1644.24853059,0.000109,2]
[339998050,1728303045887,-4468.40256016,0.000109,2]
[339998051,1728303045896,-529.12174438,0.000109,2]
[339998052,1728303045905,-25010.71331228,0.00011,2]
[339998053,1728303045916,-6322.6,0.00011,2]
[339998054,1728303045942,-1740.74654837,0.00011,2]
[339998055,1728303045953,-402.04,0.00011,2]
[339998056,1728303045997,-226891.26141214,0.00011,2]
[339998057,1728303046052,-31983.52413414,0.00011,2]
[339998149,1728303062940,540.4,9.532e-05,2]
[339998150,1728303219178,4451.0,0.000129,5]
[339998151,1728303616709,-222.58899851,0.00010899,2]
[339998152,1728303616731,-150.0,0.00010899,2]
[339998153,1728303616752,-627.41100149,0.000109,2]
[339998154,1728303618485,-785.18659851,0.000109,2]
[339998155,1728303618506,-214.81340149,0.000109,2]
[339998156,1728303619725,-785.18659851,0.000109,2]
[339998157,1728303619753,-214.81340149,0.000109,2]
[339998158,1728303621009,-1000.0,0.000109,2]
[339998159,1728303622255,-1000.0,0.000109,2]
[339998160,1728303626216,-500.0,0.000109,2]
[339998161,1728303641817,1205.42685477,0.00010999,3]
[339998162,1728303719843,513.38,9.511e-05,2]
[339998169,1728304076344,21109.14649858,0.0001,2]
[339998170,1728304076663,-1575.30909851,0.000109,2]
[339998171,1728304076684,-150.83926332,0.000109,2]
[339998172,1728304076705,-230.1937,0.000109,2]
[339998173,1728304076727,-305.8155,0.000109,2]
[339998174,1728304076751,-156.89495249,0.000109,2]
[339998175,1728304076773,-7949.94916464,0.000109,2]
[339998176,1728304076794,-1000.0,0.000109,2]
[339998177,1728304076815,-471.98130424,0.000109,2]
[339998178,1728304076837,-2500.0,0.000109,2]
[339998179,1728304076858,-6113.25712128,0.000109,2]
[339998180,1728304076879,-630.0,0.000109,2]
[339998181,1728304076901,-158.16356694,0.000109,2]
[339998182,1728304076922,-160.78,0.00010959,2]
[339998183,1728304076943,-500.0,0.00010973,2]
[339998184,1728304076970,-2486.04339077,0.0001099,2]
[339998185,1728304076990,-276.16624283,0.00010999,2]
[339998186,1728304077011,-226.07475239,0.00010999,2]
[339998187,1728304077032,-500.0,0.00010999,2]
[339998188,1728304077058,-24608.53194259,0.00011,2]
[339998189,1728304077441,-50000.0,0.00011,2]
[339998190,1728304078031,-50000.0,0.00011,2]
[339998191,1728304078593,-50000.0,0.00011,2]
[339998207,1728304100336,3656.88,0.0001,60]
[339998208,1728304110468,-177.78185028,0.000109,2]
[339998209,1728304110491,-300.0,0.00010999,2]
[339998210,1728304110516,-49522.21814972,0.00011,2]
[339998215,1728304142979,-1498.98,0.00010691,2]
[339998216,1728304143001,-314.65420284,0.000109,2]
[339998217,1728304143023,-1073.301799,0.00010945,2]
[339998218,1728304143047,-307.25687348,0.00010999,2]
[339998219,1728304143069,-500.0,0.00010999,2]
[339998220,1728304143096,-27305.80712468,0.00011,2]
[339998234,1728304203701,-250.0,0.00010692,2]
[339998235,1728304203723,-150.0,0.00010693,2]
[339998236,1728304203746,-1718.3,0.0001077,2]
[339998237,1728304203768,-1000.0,0.000109,2]
[339998238,1728304203794,-4075.50474752,0.000109,2]
[339998239,1728304203817,-153.21512411,0.000109,2]
[339998240,1728304203839,-183.1369,0.000109,2]
[339998241,1728304203861,-150.0,0.00010999,2]
[339998242,1728304203889,-11319.84322837,0.00011,2]
[339998243,1728304220492,-2500.0,0.000109,2]
[339998244,1728304220522,-16500.0,0.00011,2]
[339998257,1728304231913,-250.0,0.00010733,2]
[339998258,1728304231922,-2695.83283594,0.00011,2]
[339998259,1728304231934,-575.83803792,0.00011,2]
[339998260,1728304231945,-424.46539083,0.00011,2]
[339998261,1728304232027,-556.26670477,0.00011,2]
[339998262,1728304232037,-3169.12221538,0.00011,2]
[339998263,1728304232048,-4171.0938537,0.00011,2]
[339998264,1728304232078,-2707.52629855,0.00011,2]
[339998268,1728304232469,-1117.38825115,0.00011,2]
[339998269,1728304232479,-313154.85770343,0.00011,2]
[339998270,1728304232494,-491247.06456788,0.00011,2]
[339998272,1728304238099,-14000.0,0.00011,2]
[339998273,1728304238156,-909.98635451,0.00011,2]
[339998274,1728304238167,-4207.4695537,0.00011,2]
[339998302,1728304239998,-658.841047,0.00011,2]
[339998303,1728304240195,-94.54141583,0.00011,2]
[339998312,1728304243095,-2290.5658182,0.00011,2]
[339998313,1728304243106,-506.49216703,0.00011,2]
[339998314,1728304243208,-39107.48179734,0.00011,2]
[339998456,1728304246035,-2674.57636298,0.00011,2]
[339998457,1728304273638,-209.76946856,0.000109,2]
[339998458,1728304273661,-177.78185028,0.000109,2]
[339998459,1728304273683,-500.0,0.00010973,2]
[339998460,1728304273711,-26746.5506371,0.00011,2]
[339998461,1728304273736,-22165.89804406,0.00011,2]
[339998462,1728304280520,-50000.0,0.00011,2]
[339998463,1728304287906,-2717.00316502,0.000109,2]
[339998464,1728304287928,-47247.99683498,0.00011,2]
[339998465,1728304294729,-609.0,0.00011,2]
[339998466,1728304294753,-49389.0,0.00011,2]
[339998467,1728304343257,569.79,8.823e-05,2]
[339998468,1728304702016,1000.0,0.00010222,2]
[339998469,1728304799668,250.0,0.00010084,2]
[339998470,1728304808872,172.23,0.00010084,2]
[339998471,1728304837408,250.0,0.00010073,2]
[339998472,1728304896316,170.99,0.00010083,2]
[339998473,1728304924827,541.3,8.227e-05,2]
[339998474,1728304945840,855.93,0.00010103,2]
[339998475,1728304962482,2766.39,0.00010184,2]
[339998476,1728304991843,153.52,0.00010057,2]
[339998477,1728304997915,500.0,0.00010102,2]
[339998478,1728304998672,500.0,0.00010103,2]
[339998479,1728304999136,500.0,0.00010103,2]
[339998480,1728305015216,1761.47,0.00010051,2]
[339998481,1728305048977,200.0,0.00010051,2]
[339998482,1728305063094,2285.43,0.00010092,2]
[339998483,1728305102351,158.61422919,0.0001015,2]
[339998484,1728305138405,-300.0,0.00010249,2]
[339998485,1728305138426,-23900.0,0.0001025,2]
[339998486,1728305138446,-170.68,0.00010252,2]
[339998487,1728305138467,-541.3,0.00010491,2]
[339998488,1728305138486,-199.74,0.00010613,2]
[339998489,1728305138507,-176.26,0.00010661,2]
[339998490,1728305138528,-176.26,0.00010679,2]
[339998491,1728305138547,-499.99,0.00010697,2]
[339998492,1728305138568,-966.5,0.00010697,2]
[339998493,1728305138588,-299.99,0.00010697,2]
[339998494,1728305138608,-429.44,0.00010697,2]
[339998495,1728305138629,-176.26,0.00010697,2]
[339998496,1728305138649,-630.61,0.00010697,2]
[339998497,1728305138670,-167.86,0.00010697,2]
[339998498,1728305138690,-863.15,0.00010697,2]
[339998499,1728305138710,-822.62,0.00010697,2]
[339998500,1728305138730,-150.0,0.00010713,2]
[339998501,1728305138751,-176.26,0.00010714,2]
[339998502,1728305138771,-521.17,0.00010714,2]
[339998503,1728305138791,-163.09,0.00010714,2]
[339998504,1728305138810,-4370.83,0.00010714,2]
[339998505,1728305138831,-171.68,0.00010746,2]
[339998506,1728305138852,-279.41,0.0001076,2]
[339998507,1728305138872,-9903.72619158,0.0001089,2]
[339998508,1728305138892,-225.84,0.0001089,2]
[339998509,1728305138911,-150.99,0.000109,2]
[339998510,1728305138931,-1000.0,0.000109,2]
[339998511,1728305138951,-1000.0,0.000109,2]
[339998512,1728305138971,-2202.1127,0.000109,2]
[339998513,1728305138991,-153.21512405,0.000109,2]
[339998514,1728305139012,-177.78185028,0.000109,2]
[339998515,1728305139033,-1811.33544334,0.000109,2]
[339998516,1728305139053,-156.89495249,0.000109,2]
[339998517,1728305139074,-200.0,0.00010959,2]
[339998518,1728305139095,-166.32,0.00010959,2]
[339998519,1728305139118,-601.58,0.00010959,2]
[339998520,1728305139139,-159.88,0.00010959,2]
[339998521,1728305139159,-1472.92,0.00010959,2]
[339998522,1728305139178,-250.0,0.00010959,2]
[339998523,1728305139197,-150.0,0.00010959,2]
[339998524,1728305139217,-225.84,0.0001099,2]
[339998525,1728305139236,-225.84,0.0001099,2]
[339998526,1728305139256,-225.84,0.0001099,2]
[339998527,1728305139275,-225.84,0.0001099,2]
[339998528,1728305139295,-225.84,0.0001099,2]
[339998529,1728305139314,-225.84,0.0001099,2]
[339998530,1728305139334,-225.84,0.0001099,2]
[339998531,1728305139354,-225.84,0.0001099,2]
[339998532,1728305139374,-225.84,0.0001099,2]
[339998534,1728305139394,-543.0,0.00011,2]
[339998536,1728305139413,-2782188.57061697,0.00011,2]
[339998538,1728305139438,-5302019.83974969,0.00011,2]
[339998540,1728305139458,-250.0,0.00011,2]
[339998541,1728305139478,-39931.029,0.00011,2]
[339998542,1728305185871,2500.0,0.000109,2]
[339998555,1728305357481,-2519.6262515,0.00011071,2]
[339998556,1728305357507,-1000.0,0.000111,2]
[339998557,1728305357529,-1245.0,0.000111,2]
[339998558,1728305357552,-383.95,0.00011301,2]
[339998559,1728305357574,-250.0,0.00011311,2]
[339998560,1728305357595,-200.0,0.0001132,2]
[339998561,1728305357617,-23900.0,0.00011341,2]
[339998562,1728305357638,-481.26,0.00011351,2]
[339998563,1728305357660,-704.02,0.00011452,2]
[339998564,1728305357682,-1000.0,0.000115,2]
[339998565,1728305357702,-206.02,0.00011507,2]
[339998566,1728305357724,-154.09,0.00011602,2]
[339998567,1728305357748,-499.99,0.00011602,2]
[339998568,1728305357771,-154.09,0.00011606,2]
[339998569,1728305357793,-299.99,0.00011606,2]
[339998570,1728305357815,-790.55,0.00011606,2]
[339998571,1728305357837,-154.09,0.00011609,2]
[339998572,1728305357859,-154.09,0.00011612,2]
[339998573,1728305357880,-154.09,0.00011615,2]
[339998574,1728305357902,-154.09,0.00011618,2]
[339998575,1728305357924,-154.09,0.00011621,2]
[339998576,1728305357946,-154.09,0.00011624,2]
[339998577,1728305357969,-154.09,0.00011627,2]
[339998578,1728305357992,-154.09,0.0001163,2]
[339998579,1728305358015,-154.09,0.00011633,2]
[339998580,1728305358039,-154.09,0.00011636,2]
[339998581,1728305358061,-154.09,0.00011639,2]
[339998582,1728305358083,-154.09,0.00011642,2]
[339998583,1728305358105,-154.09,0.00011645,2]
[339998584,1728305358129,-154.09,0.00011648,2]
[339998585,1728305358151,-150.0,0.00011651,2]
[339998586,1728305358175,-154.09,0.00011651,2]
[339998587,1728305358197,-154.09,0.00011654,2]
[339998588,1728305358221,-154.09,0.00011657,2]
[339998589,1728305358249,-154.09,0.0001166,2]
[339998590,1728305358272,-152.0,0.00011696,2]
[339998591,1728305358293,-500.0,0.00011696,2]
[339998592,1728305358317,-500.0,0.00011696,2]
[339998593,1728305358339,-500.0,0.00011696,2]
[339998594,1728305358361,-500.0,0.00011696,2]
[339998595,1728305358383,-500.0,0.00011696,2]
[339998596,1728305358405,-500.0,0.00011696,2]
[339998597,1728305358427,-500.0,0.00011696,2]
[339998598,1728305358449,-500.0,0.00011696,2]
[339998599,1728305358471,-500.0,0.00011696,2]
[339998600,1728305358494,-500.0,0.00011696,2]
[339998601,1728305358516,-500.0,0.00011696,2]
[339998602,1728305358537,-500.0,0.00011696,2]
[339998603,1728305358559,-500.0,0.00011696,2]
[339998604,1728305358582,-500.0,0.00011696,2]
[339998605,1728305358604,-500.0,0.00011696,2]
[339998606,1728305358627,-500.0,0.00011696,2]
[339998607,1728305358649,-905.0,0.00011696,2]
[339998608,1728305358671,-500.0,0.00011696,2]
[339998609,1728305358694,-500.0,0.00011696,2]
[339998610,1728305358717,-500.0,0.00011696,2]
[339998611,1728305358751,-500.0,0.00011696,2]
[339998612,1728305358773,-867.0,0.00011696,2]
[339998613,1728305358794,-200.0,0.00011696,2]
[339998614,1728305358815,-200.0,0.00011696,2]
[339998615,1728305358836,-200.0,0.00011696,2]
[339998616,1728305358857,-200.0,0.00011696,2]
[339998617,1728305358878,-254.0,0.00011696,2]
[339998618,1728305358900,-430.00101926,0.00011876,2]
[339998619,1728305358922,-1079.79272924,0.00011884,2]
[339998620,1728305363754,305.7723,0.00010971,2]
[339998627,1728305432175,-250.0,0.00011631,2]
[339998628,1728305432185,-65.789776,0.00011884,2]
[339998629,1728305432456,-0.41333446,0.00011884,2]
[339998630,1728305432472,-3431.2849173,0.00011884,2]
[339998631,1728305432481,-200.0,0.00011884,2]
[339998633,1728305432491,-1418.8530219,0.00011892,2]